bitfinex-derivatives/quotes_BNBF0:USTF0_20250316
["timestamp","ask_amount","ask_price","bid_price","bid_amount"]
[1742145044573,0.27911221,605.9,604.83,0.4]
[1742145044774,0.27911221,605.89,604.83,0.4]
[1742145044977,0.27911221,605.88,604.83,0.4]
[1742145045180,0.27911221,605.87,604.83,0.4]
[1742145045382,0.27911221,605.86,604.83,0.4]
[1742145045577,0.27911221,606.08,604.83,0.4]
[1742145045780,0.27911221,606.07,604.83,0.4]
[1742145045975,0.27911221,606.06,604.83,0.4]
[1742145046174,0.27911221,606.05,604.83,0.4]
[1742145046379,0.27911221,606.04,604.83,0.4]
[1742145046573,0.27911221,606.03,604.83,0.4]
[1742145046778,0.27911221,606.02,604.83,0.4]
[1742145047079,0.27911221,606.01,604.83,0.4]
[1742145047281,0.27911221,606.0,604.83,0.4]
[1742145047484,0.27911221,606.18,604.83,0.4]
[1742145047681,0.27911221,606.17,604.83,0.4]
[1742145047885,0.27911221,606.16,604.83,0.4]
[1742145048182,0.27911221,606.15,604.83,0.4]
[1742145048378,0.27911221,606.25,604.83,0.4]
[1742145048682,0.27911221,606.24,604.83,0.4]
[1742145049276,0.27911221,606.23,604.83,0.4]
[1742145049784,0.27911221,606.22,604.83,0.4]
[1742145050179,0.27911221,606.21,604.83,0.4]
[1742145050380,0.27911221,606.2,604.83,0.4]
[1742145050577,0.27911221,606.19,604.83,0.4]
[1742145050883,0.28765085,606.26,604.83,0.4]
[1742145051081,0.27915802,606.25,604.83,0.4]
[1742145051384,0.27915802,606.24,604.83,0.4]
[1742145051585,0.27915802,606.23,604.83,0.4]
[1742145051782,0.27915802,606.22,604.83,0.4]
[1742145051982,0.27915802,606.21,604.83,0.4]
[1742145052178,0.27915802,606.2,604.83,0.4]
[1742145052484,0.27915802,606.19,604.83,0.4]
[1742145052682,0.27915802,606.33,604.83,0.4]
[1742145052981,0.27915802,606.32,604.83,0.4]
[1742145053283,0.27915802,606.31,604.83,0.4]
[1742145053483,0.28761044,606.34,604.83,0.4]
[1742145053484,0.27915802,606.3,604.83,0.4]
[1742145053780,0.27915802,606.29,604.83,0.4]
[1742145053978,0.27915802,606.33,604.83,0.4]
[1742145054179,0.27915802,606.32,604.83,0.4]
[1742145054380,0.27915802,606.33,604.83,0.4]
[1742145054580,0.27915802,606.32,604.83,0.4]
[1742145054787,0.27915802,606.33,604.83,0.4]
[1742145054986,0.27915802,606.31,604.83,0.4]
[1742145055186,0.27915802,606.3,604.83,0.4]
[1742145055386,0.27915802,606.36,604.83,0.4]
[1742145055586,0.27915802,606.35,604.83,0.4]
[1742145055788,0.27915802,606.52,604.83,0.4]
[1742145055979,0.27915802,606.51,604.83,0.4]
[1742145056184,0.27915802,606.52,604.83,0.4]
[1742145056487,0.27915802,606.51,604.83,0.4]
[1742145056787,0.27915802,606.5,604.83,0.4]
[1742145057086,0.27915802,606.49,604.83,0.4]
[1742145057282,2.8805513,606.52,604.83,0.4]
[1742145057483,0.27915802,606.51,604.83,0.4]
[1742145058285,0.27933424,606.5,604.83,0.4]
[1742145058588,0.27933424,606.49,604.83,0.4]
[1742145059089,0.27933424,606.48,604.83,0.4]
[1742145059382,0.27933424,606.55,604.83,0.4]
[1742145059589,0.27933424,606.54,604.83,0.4]
[1742145059889,0.27933424,606.55,604.83,0.4]
[1742145060085,0.27933424,606.53,604.83,0.4]
[1742145060388,0.27933424,606.52,604.83,0.4]
[1742145060886,0.27933424,606.55,604.83,0.4]
[1742145061087,0.27933424,606.51,604.42,0.28756172]
[1742145061488,0.27933424,606.55,604.43,0.30365983]
[1742145061683,0.27933424,606.5,604.43,0.30365983]
[1742145062081,0.27933424,606.54,604.43,0.30365983]
[1742145062286,0.27933424,606.49,604.43,0.30365983]
[1742145062482,0.27933424,606.53,604.43,0.30365983]
[1742145063190,0.27933424,606.52,604.42,0.28756172]
[1742145063387,0.27933424,606.51,604.42,0.28756172]
[1742145063590,0.27933424,606.5,604.43,0.30371962]
[1742145064090,0.27933424,606.49,604.43,0.30371962]
[1742145064291,0.27933424,606.48,604.43,0.30371962]
[1742145064589,0.27933424,606.47,604.43,0.30371962]
[1742145064990,2.50503755,606.45,604.43,0.30371962]
[1742145065190,6.01673616,606.44,604.43,0.30371962]
[1742145065487,5.11128429,606.43,604.43,0.30371962]
[1742145065689,1.41660717,606.42,604.43,0.30371962]
[1742145066091,0.27933424,606.41,604.43,0.30371962]
[1742145066389,0.27933424,606.4,604.43,0.30371962]
[1742145066589,0.27933424,606.43,604.43,0.30371962]
[1742145066787,2.60139328,606.44,604.42,0.7315332]
[1742145066986,0.27963044,606.39,604.42,0.7315332]
[1742145067190,2.60139328,606.44,604.42,0.7315332]
[1742145067191,2.50503755,606.31,604.43,0.30373667]
[1742145067391,0.27963044,606.3,604.43,0.30373667]
[1742145068286,0.27963044,606.3,604.42,0.73154984]
[1742145068488,0.27963044,606.3,604.43,0.30374]
[1742145068684,0.27963044,606.3,604.42,0.73154984]
[1742145068991,0.27963044,606.29,604.42,0.73154984]
[1742145069287,0.27963044,606.28,604.42,0.73154984]
[1742145069485,0.27963044,606.37,604.42,0.73154984]
[1742145069691,0.27963044,606.27,604.42,0.73154984]
[1742145069885,0.27963044,606.26,604.42,0.73154984]
[1742145070292,0.27963044,606.37,604.42,0.444]
[1742145070491,0.27963044,606.25,604.42,0.444]
[1742145070695,0.27963044,606.24,604.42,0.73155815]
[1742145070896,0.27963044,606.23,604.43,0.30377147]
[1742145071093,0.27963044,606.22,604.43,0.30377147]
[1742145071298,0.32991867,606.21,604.45,0.33087931]
[1742145071600,0.27963044,606.2,604.46,0.30377147]
[1742145071795,0.60956,606.19,604.48,0.33086289]
[1742145072001,0.60956544,606.18,604.49,0.30377147]
[1742145072202,0.60957088,606.17,604.51,0.33084647]
[1742145072397,0.60957632,606.16,604.52,0.30377147]
[1742145072702,0.60958177,606.15,604.53,0.33083552]
[1742145072906,0.60958721,606.14,604.53,0.33083552]
[1742145073102,0.60959265,606.13,604.53,0.33083552]
[1742145073296,0.27963044,606.12,604.53,0.33083552]
[1742145073502,0.27963044,606.12,604.54,0.30376271]
[1742145073697,0.27963044,606.11,604.53,0.33083552]
[1742145074001,0.27963044,606.1,604.53,0.33083552]
[1742145074202,0.27963044,606.09,604.53,0.33083552]
[1742145074402,0.27963044,606.08,604.53,0.33083552]
[1742145074596,0.27963044,606.07,604.53,0.33083552]
[1742145075103,0.27963044,606.06,604.53,0.33083552]
[1742145075399,2.78466799,606.05,604.53,0.33083552]
[1742145075601,5.12394612,606.04,604.53,0.33083552]
[1742145075799,1.69959286,606.03,604.53,0.33083552]
[1742145075997,0.33002211,606.02,604.53,0.33083552]
[1742145076199,0.27963044,606.01,604.53,0.33083552]
[1742145076608,0.60966344,606.0,604.53,0.33083552]
[1742145077004,0.60966888,605.99,604.53,0.33083552]
[1742145077207,0.60967433,605.98,604.53,0.33083552]
[1742145077411,0.60967978,605.97,604.53,0.33083552]
[1742145077603,0.60968522,605.96,604.53,0.33083552]
[1742145077802,2.50503755,605.98,604.53,0.33083552]
[1742145077803,0.60969067,605.95,604.53,0.33083552]
[1742145078005,0.33006023,605.95,604.53,0.33083552]
[1742145078206,0.60975978,605.94,604.53,0.33083552]
[1742145078406,0.2796941,605.93,604.53,0.33083552]
[1742145078608,0.2796941,605.92,604.53,0.33083552]
[1742145078809,0.2796941,605.91,604.53,0.33083552]
[1742145079109,0.2796941,605.9,604.53,0.33083552]
[1742145079309,0.2796941,605.89,604.53,0.33083552]
[1742145079509,0.2796941,605.88,604.53,0.33083552]
[1742145079910,0.2796941,605.87,604.53,0.33083552]
[1742145080308,0.2796941,605.86,604.53,0.33083552]
[1742145080509,0.2796941,605.85,604.53,0.33083552]
[1742145080909,0.2796941,605.84,604.53,0.33083552]
[1742145081111,0.2796941,605.83,604.53,0.33083552]
[1742145081310,0.2796941,605.82,604.53,0.33083552]
[1742145081507,0.2796941,605.81,604.53,0.33083552]
[1742145081713,0.2796941,605.8,604.53,0.33083552]
[1742145082011,0.2796941,605.79,604.53,0.33083552]
[1742145082206,0.2796941,605.78,604.53,0.33083552]
[1742145082407,0.2796941,605.77,604.53,0.33083552]
[1742145082712,0.2796941,605.9,604.53,0.33083552]
[1742145082913,0.2796941,605.89,604.53,0.33083552]
[1742145083106,0.2796941,605.91,604.53,0.33083552]
[1742145083310,0.2796941,605.93,604.53,0.33083552]
[1742145083510,0.2796941,605.92,604.54,0.30369158]
[1742145083811,0.2796941,605.91,604.56,0.3308191]
[1742145084012,0.2796941,605.93,604.57,0.30369158]
[1742145085415,0.2796941,605.92,604.57,0.30369158]
[1742145085614,0.2796941,606.48,604.59,0.33080269]
[1742145085914,0.32978267,606.46,604.6,0.30369158]
[1742145086110,0.32978267,606.46,604.62,0.33078627]
[1742145086415,0.2796941,606.45,604.63,0.30369158]
[1742145086715,0.2796941,606.44,604.63,0.30369158]
[1742145086909,0.2796941,606.43,604.63,0.30369158]
[1742145087108,0.32980986,606.41,604.64,0.33077533]
[1742145087316,2.50503755,606.31,604.64,0.33077533]
[1742145087612,5.48654314,606.3,604.65,0.30370495]
[1742145087816,2.039309,606.29,604.66,0.33076439]
[1742145088011,0.61016848,606.28,604.66,0.33076439]
[1742145088216,0.61017392,606.27,604.66,0.33076439]
[1742145088517,0.61017936,606.26,604.66,0.33076439]
[1742145088816,0.6101848,606.25,604.67,0.30368825]
[1742145089013,0.61019024,606.24,604.68,0.33075345]
[1742145089217,0.61008912,606.23,604.68,0.33075345]
[1742145089409,0.61009456,606.22,604.68,0.33075345]
[1742145089608,0.6101,606.21,604.68,0.33075345]
[1742145089813,0.61010544,606.2,604.68,0.33075345]
[1742145090010,0.61011089,606.19,604.69,0.30368504]
[1742145090212,0.28018133,606.18,604.69,0.30368504]
[1742145090517,0.61012177,606.17,604.7,0.33074251]
[1742145090716,0.28018133,606.16,604.7,0.33074251]
[1742145091115,0.28018133,606.15,604.7,0.33074251]
[1742145091315,0.28018133,606.14,604.7,0.33074251]
[1742145091516,0.61014354,606.13,604.7,0.33074251]
[1742145091716,0.28018133,606.12,604.7,0.33074251]
[1742145091916,0.28018133,606.11,604.7,0.33074251]
[1742145092117,0.28018133,606.1,604.7,0.33074251]
[1742145092317,0.28018133,606.09,604.7,0.33074251]
[1742145092516,0.28018133,606.11,604.7,0.33074251]
[1742145092718,0.28018133,606.1,604.7,0.33074251]
[1742145093219,0.28018133,606.09,604.7,0.33074251]
[1742145093411,0.28018133,606.08,604.7,0.33074251]
[1742145093715,0.28018133,606.07,604.7,0.33074251]
[1742145093919,0.28018133,606.06,604.7,0.33074251]
[1742145094113,0.28018133,606.05,604.7,0.33074251]
[1742145094519,0.28018133,606.04,604.7,0.33074251]
[1742145094719,0.28005371,606.03,604.7,0.33074251]
[1742145094920,0.28005371,606.02,604.7,0.33074251]
[1742145095220,0.28005371,606.01,604.7,0.33074251]
[1742145095421,0.28005371,606.0,604.7,0.33074251]
[1742145095618,1.42914596,606.18,604.7,0.33074251]
[1742145095619,0.61009215,605.99,604.7,0.33074251]
[1742145095819,0.28005371,605.98,604.7,0.33074251]
[1742145096020,0.28005371,605.97,604.7,0.33074251]
[1742145096213,0.28005371,605.96,604.7,0.33074251]
[1742145096413,0.28005371,605.95,604.7,0.33074251]
[1742145096613,0.27992293,605.94,604.7,0.33074251]
[1742145096815,0.27992293,605.93,604.7,0.33074251]
[1742145097021,0.27992293,605.92,604.7,0.33074251]
[1742145097314,0.33003844,605.99,604.7,0.33074251]
[1742145097315,0.27992293,605.91,604.7,0.33074251]
[1742145097519,0.27992293,605.9,604.7,0.33074251]
[1742145097719,0.27992293,605.89,604.7,0.33074251]
[1742145097921,0.27992293,605.88,604.7,0.33074251]
[1742145098121,0.27992293,605.87,604.7,0.33074251]
[1742145098322,0.27992293,605.86,604.7,0.33074251]
[1742145098620,0.27992293,605.85,604.7,0.33074251]
[1742145098820,0.27992293,605.84,604.7,0.33074251]
[1742145099124,0.27992293,605.83,604.7,0.33074251]
[1742145099322,0.27992293,605.82,604.7,0.33074251]
[1742145099522,0.27992293,605.81,604.7,0.33074251]
[1742145099720,0.27992293,605.8,604.7,0.33074251]
[1742145100023,3.44723958,605.86,604.7,0.33074251]
[1742145100223,0.27992975,605.85,604.7,0.33074251]
[1742145100423,2.63289081,605.85,604.7,0.33074251]
[1742145100621,0.27993922,605.84,604.7,0.33074251]
[1742145102021,0.27993922,605.98,604.7,0.33074251]
[1742145102227,0.27993922,605.83,604.7,0.33074251]
[1742145102528,0.27993922,605.82,604.7,0.33074251]
[1742145102728,0.27993922,605.96,604.7,0.33074251]
[1742145102930,0.60999945,605.95,604.7,0.33074251]
[1742145103232,0.6100049,605.94,604.7,0.33074251]
[1742145103429,0.61001035,605.93,604.7,0.33074251]
[1742145103729,0.33007657,605.92,604.7,0.33074251]
[1742145103930,0.28011589,605.91,604.7,0.33074251]
[1742145104327,0.28011589,605.9,604.7,0.33074251]
[1742145104524,0.28011589,605.91,604.7,0.33074251]
[1742145104825,0.28011589,605.9,604.7,0.33074251]
[1742145105027,0.28011589,605.91,604.7,0.33074251]
[1742145105227,0.28011589,605.9,604.7,0.33074251]
[1742145105626,0.33007657,605.92,604.7,0.33074251]
[1742145105924,0.28026232,605.91,604.7,0.33074251]
[1742145106328,0.28026232,605.9,604.7,0.33074251]
[1742145106529,0.28026232,605.89,604.7,0.33074251]
[1742145106729,0.28026232,605.88,604.7,0.33074251]
[1742145106929,0.28026232,605.91,604.7,0.33074251]
[1742145107132,0.28026232,605.9,604.7,0.33074251]
[1742145107331,0.28026232,605.91,604.7,0.33074251]
[1742145108833,0.28026232,605.9,604.7,0.33074251]
[1742145109034,0.33007657,605.92,604.7,0.33074251]
[1742145109234,0.28038269,605.91,604.7,0.33074251]
[1742145109435,0.28038269,605.9,604.7,0.33074251]
[1742145109637,0.28038269,605.89,604.7,0.33074251]
[1742145109835,0.28038269,605.91,604.7,0.33074251]
[1742145110036,0.28038269,605.9,604.7,0.33074251]
[1742145110236,0.33007657,605.92,604.7,0.33074251]
[1742145110237,0.28038269,605.89,604.7,0.33074251]
[1742145110438,0.28038269,605.88,604.7,0.33074251]
[1742145110636,0.28038269,605.87,604.7,0.33074251]
[1742145111034,0.28038269,605.86,604.7,0.33074251]
[1742145111229,0.28038269,605.91,604.7,0.33074251]
[1742145111430,0.28038269,605.9,604.7,0.33074251]
[1742145111935,0.28038269,605.89,604.7,0.33074251]
[1742145112134,0.28038269,605.88,604.7,0.33074251]
[1742145112530,0.28038269,605.87,604.7,0.33074251]
[1742145112730,0.33007657,605.92,604.7,0.33074251]
[1742145112934,0.28044435,605.91,604.7,0.33074251]
[1742145114233,0.28044435,605.9,604.7,0.33074251]
[1742145114436,0.28044435,605.89,604.7,0.33074251]
[1742145114637,0.33007657,605.92,604.7,0.33074251]
[1742145114838,0.28031057,605.91,604.7,0.33074251]
[1742145115136,0.28031057,605.9,604.7,0.33074251]
[1742145115337,0.28031057,605.89,604.7,0.33074251]
[1742145115541,0.28031057,605.88,604.7,0.33074251]
[1742145115740,0.28031057,605.87,604.7,0.33074251]
[1742145116038,0.28031057,605.86,604.7,0.33074251]
[1742145116238,0.28031057,605.85,604.7,0.33074251]
[1742145116537,0.28029878,605.84,604.7,0.33074251]
[1742145116738,0.28029878,605.83,604.7,0.33074251]
[1742145116935,0.28029878,605.82,604.7,0.33074251]
[1742145117240,0.28029878,605.81,604.71,0.507]
[1742145117440,0.28029878,605.88,604.71,0.507]
[1742145117740,0.28029878,605.87,604.71,0.507]
[1742145117942,0.28029878,605.86,604.71,0.507]
[1742145118140,0.28029878,605.85,604.71,0.507]
[1742145118344,0.28020413,605.84,604.71,0.507]
[1742145118536,0.28020413,605.83,604.71,0.507]
[1742145118740,0.28020413,605.82,604.71,0.507]
[1742145118935,3.45220845,605.87,604.71,0.507]
[1742145118936,0.28020413,605.81,604.71,0.507]
[1742145119141,0.28020413,605.8,604.71,0.507]
[1742145119336,0.28020413,605.79,604.71,0.507]
[1742145119537,0.28020413,605.78,604.71,0.507]
[1742145119742,0.28020413,605.86,604.71,0.507]
[1742145119938,0.28020413,605.85,604.71,0.507]
[1742145120237,0.28020413,605.84,604.71,0.507]
[1742145120442,0.28020413,605.83,604.71,0.507]
[1742145120736,0.28020413,605.82,604.71,0.507]
[1742145120942,0.28020413,605.81,604.71,0.507]
[1742145121142,0.28020413,605.8,604.71,0.507]
[1742145121444,0.28020413,605.79,604.71,0.507]
[1742145121643,3.45220845,605.85,604.71,0.507]
[1742145121644,0.28020413,605.84,604.71,0.507]
[1742145121843,0.28020413,605.83,604.71,0.507]
[1742145122042,0.28020413,605.82,604.71,0.507]
[1742145122242,0.28020413,605.81,604.71,0.507]
[1742145122442,0.28020413,605.8,604.71,0.507]
[1742145122737,0.28020413,605.79,604.71,0.507]
[1742145122943,0.28020413,605.82,604.71,0.507]
[1742145123137,2.63289081,605.84,604.71,0.507]
[1742145123138,0.28020413,605.81,604.71,0.507]
[1742145123340,0.61034064,605.81,604.71,0.507]
[1742145123542,0.28020413,605.8,604.71,0.507]
[1742145124143,0.33013651,605.81,604.71,0.507]
[1742145124442,0.27977151,605.8,604.71,0.507]
[1742145125644,0.27977151,605.79,604.71,0.507]
[1742145125940,0.33015286,605.78,604.71,0.507]
[1742145126338,0.27977151,605.77,604.71,0.507]
[1742145126543,0.60992982,605.77,604.71,0.507]
[1742145126850,0.27977151,605.76,604.71,0.507]
[1742145127041,0.27977151,605.75,604.71,0.507]
[1742145127349,0.33015831,605.77,604.71,0.507]
[1742145127350,0.27977151,605.74,604.71,0.507]
[1742145127646,0.27977151,605.73,604.71,0.507]
[1742145127846,0.27977151,605.72,604.71,0.507]
[1742145128046,0.27977151,605.71,604.71,0.507]
[1742145128244,0.27977151,605.7,604.71,0.507]
[1742145128442,0.27977151,605.69,604.71,0.507]
[1742145128641,0.27977151,605.68,604.71,0.507]
[1742145128844,0.60998433,605.67,604.71,0.507]
[1742145129045,0.27977151,605.66,604.71,0.507]
[1742145129349,0.27977151,605.65,604.71,0.507]
[1742145129541,0.27977151,605.64,604.71,0.507]
[1742145129746,0.27977151,605.63,604.71,0.507]
[1742145129946,0.27977151,605.62,604.71,0.507]
[1742145130145,0.27977151,605.61,604.71,0.507]
[1742145130344,0.27977151,605.6,604.71,0.507]
[1742145130649,0.33021282,605.67,604.71,0.507]
[1742145130848,0.27973829,605.66,604.71,0.507]
[1742145131048,0.27973829,605.65,604.71,0.507]
[1742145131350,0.33022917,605.64,604.71,0.507]
[1742145131545,0.60996746,605.64,604.71,0.507]
[1742145131745,0.27973829,605.63,604.71,0.507]
[1742145131945,0.27973829,605.62,604.71,0.507]
[1742145132149,0.27973829,605.61,604.71,0.507]
[1742145132450,0.27973829,605.6,604.71,0.507]
[1742145132643,0.27977221,605.59,604.71,0.507]
[1742145132846,0.27977221,605.58,604.71,0.507]
[1742145133047,0.27977221,605.57,604.71,0.507]
[1742145133248,0.27977221,605.56,604.71,0.507]
[1742145133548,0.27977221,605.55,604.71,0.507]
[1742145133751,0.27977221,605.54,604.71,0.507]
[1742145133944,0.27977221,605.63,604.71,0.507]
[1742145134144,0.27977221,605.62,604.71,0.507]
[1742145134345,0.27977221,605.61,604.71,0.507]
[1742145134550,0.27977221,605.6,604.71,0.507]
[1742145134749,0.27977221,605.59,604.71,0.507]
[1742145134951,0.27977221,605.58,604.71,0.507]
[1742145135145,0.33026735,605.57,604.71,0.507]
[1742145135345,0.27977221,605.56,604.71,0.507]
[1742145135547,0.33027825,605.55,604.71,0.507]
[1742145135742,0.27977221,605.54,604.71,0.507]
[1742145135943,0.61005592,605.54,604.71,0.507]
[1742145136145,0.33028371,605.54,604.71,0.507]
[1742145136347,0.27973819,605.53,604.71,0.507]
[1742145141853,0.33028371,605.54,604.71,0.507]
[1742145142055,0.27973116,605.53,604.71,0.507]
[1742145144555,0.33029462,605.52,604.71,0.507]
[1742145144754,0.27973116,605.51,604.71,0.507]
[1742145144954,0.33030553,605.5,604.71,0.507]
[1742145145156,0.27973116,605.49,604.71,0.507]
[1742145145358,0.33031644,605.48,604.71,0.507]
[1742145145560,0.27967476,605.47,604.71,0.507]
[1742145145760,0.33032735,605.46,604.71,0.507]
[1742145145960,0.27967476,605.45,604.71,0.507]
[1742145149056,0.33032735,605.46,604.71,0.507]
[1742145149261,0.27978599,605.45,604.71,0.507]
[1742145151065,0.27985479,605.44,604.71,0.507]
[1742145151263,0.27985479,605.45,604.71,0.507]
[1742145154866,0.27985479,605.44,604.71,0.507]
[1742145155166,0.33032735,605.46,604.71,0.507]
[1742145155167,0.27985479,605.43,604.71,0.507]
[1742145155371,0.27985479,605.42,604.71,0.507]
[1742145155666,0.27985479,605.41,604.71,0.507]
[1742145155868,0.27985479,605.45,604.71,0.507]
[1742145156068,0.27985479,605.4,604.71,0.507]
[1742145156268,0.27985479,605.44,604.71,0.507]
[1742145156666,0.27985479,605.39,604.71,0.507]
[1742145156967,0.27985479,605.43,604.71,0.507]
[1742145157666,0.27985479,605.45,604.71,0.507]
[1742145157867,0.27985479,605.38,604.71,0.507]
[1742145158062,0.27985479,605.45,604.71,0.507]
[1742145158263,0.33032735,605.46,604.71,0.507]
[1742145158264,0.27985479,605.44,604.71,0.507]
[1742145158464,0.27985479,605.45,604.71,0.507]
[1742145158664,0.33032735,605.46,604.71,0.507]
[1742145158665,0.27985479,605.44,604.71,0.507]
[1742145158865,0.27985479,605.45,604.71,0.507]
[1742145159166,0.27985479,605.43,604.71,0.507]
[1742145159465,0.27985479,605.44,604.71,0.507]
[1742145159669,0.27985479,605.43,604.71,0.507]
[1742145159868,0.27985479,605.45,604.71,0.507]
[1742145160062,0.27985479,605.44,604.71,0.507]
[1742145162361,0.27985479,605.43,604.71,0.507]
[1742145162562,2.50503755,605.42,604.71,0.507]
[1742145162765,0.27985479,605.41,604.71,0.507]
[1742145163265,0.27985479,605.4,604.71,0.507]
[1742145163468,0.27985479,605.39,604.71,0.507]
[1742145163864,0.27985479,605.38,604.71,0.507]
[1742145164061,0.27985479,605.4,604.71,0.507]
[1742145164265,0.27985479,605.39,604.71,0.507]
[1742145164465,0.27985479,605.4,604.71,0.507]
[1742145164667,0.27985479,605.39,604.71,0.507]
[1742145164867,0.27985479,605.4,604.71,0.507]
[1742145165166,2.50503755,605.27,604.71,0.507]
[1742145165363,0.27985479,605.26,604.71,0.507]
[1742145165565,0.27948751,605.26,604.71,0.507]
[1742145166172,0.27948751,605.26,603.91,0.2878912]
[1742145166363,0.27948751,605.26,603.92,0.30400621]
[1742145166567,0.27948751,605.26,603.94,0.33115872]
[1742145166862,0.27948751,605.27,603.95,0.30400621]
[1742145167064,0.27948751,605.25,603.97,0.33114227]
[1742145167269,0.27948751,605.24,603.98,0.30400621]
[1742145167571,0.27956889,605.23,604.0,0.33112582]
[1742145167766,0.27956889,605.27,604.01,0.30401416]
[1742145167978,0.27956889,605.26,604.02,0.33111486]
[1742145168176,0.27956889,605.27,604.02,0.33111486]
[1742145168469,0.27956889,605.26,604.02,0.33111486]
[1742145168669,0.27956889,605.27,604.02,0.33111486]
[1742145168875,0.27956889,605.41,604.02,0.33111486]
[1742145169071,0.27956889,605.4,604.02,0.33111486]
[1742145170170,0.27956889,605.4,604.02,0.85511486]
[1742145171172,2.50503755,605.36,604.02,0.85511486]
[1742145171370,0.27956376,605.35,604.02,0.85511486]
[1742145172780,2.50503755,605.36,604.02,0.85511486]
[1742145172975,2.90675245,605.35,604.02,0.85511486]
[1742145173478,0.27956236,605.34,604.02,0.85511486]
[1742145175174,2.90949814,605.41,604.02,0.85511486]
[1742145175378,0.27956236,605.4,604.02,0.85511486]
[1742145177076,3.72177451,605.41,604.02,0.85511486]
[1742145177280,0.27956236,605.4,604.03,0.30401573]
[1742145177480,0.27956236,605.39,604.04,0.3311039]
[1742145177885,0.27956236,605.38,604.04,0.3311039]
[1742145178286,0.27956236,605.37,604.04,0.3311039]
[1742145178477,0.27956236,605.4,604.04,0.3311039]
[1742145178681,0.27956236,605.41,604.04,0.3311039]
[1742145178879,0.27956236,605.4,604.04,0.3311039]
[1742145179079,0.27956236,605.41,604.04,0.3311039]
[1742145179482,2.50503755,605.3,604.04,0.3311039]
[1742145179887,0.27956236,605.29,604.04,0.3311039]
[1742145180585,2.90949814,605.29,604.04,0.3311039]
[1742145180778,0.27956236,605.28,604.04,0.3311039]
[1742145182380,0.27956236,605.27,604.04,0.3311039]
[1742145183790,0.27956236,605.35,604.04,0.3311039]
[1742145184086,0.27956236,605.26,604.04,0.3311039]
[1742145184388,0.33032735,605.46,604.04,0.3311039]
[1742145185188,0.27884321,605.26,604.04,0.3311039]
[1742145186089,0.27884321,605.45,604.04,0.3311039]
[1742145186288,0.27884321,605.25,604.04,0.3311039]
[1742145186489,0.27884321,605.24,604.04,0.3311039]
[1742145186891,0.27884321,605.23,604.04,0.3311039]
[1742145187184,0.27884321,605.22,604.04,0.3311039]
[1742145187389,0.27884321,605.45,604.04,0.3311039]
[1742145187590,0.27884321,605.44,604.04,0.3311039]
[1742145187788,0.27884321,605.45,604.04,0.3311039]
[1742145188189,0.33033826,605.44,604.04,0.3311039]
[1742145188389,0.27884321,605.43,604.04,0.3311039]
[1742145188786,0.33034917,605.42,604.04,0.3311039]
[1742145188990,0.27884321,605.41,604.04,0.3311039]
[1742145189187,0.6092033,605.4,604.04,0.7571039]
[1742145189387,0.33036009,605.4,604.04,0.7571039]
[1742145189692,0.27884057,605.39,604.04,0.7571039]
[1742145189894,0.27884057,605.38,604.04,0.7571039]
[1742145190088,0.60921703,605.37,604.04,0.7571039]
[1742145190292,0.60922249,605.36,604.04,0.7571039]
[1742145190493,0.27884057,605.35,604.04,0.7571039]
[1742145193195,0.33038192,605.36,604.04,0.7571039]
[1742145193393,0.27886954,605.35,604.04,0.7571039]
[1742145195196,0.27886954,605.35,604.05,0.30395513]
[1742145196797,0.27886954,605.34,604.05,0.30395513]
[1742145197098,0.27871696,605.33,604.06,0.30385855]
[1742145197398,0.27871696,605.32,604.07,0.30385855]
[1742145197598,1.70621361,605.78,604.05,0.30385855]
[1742145197895,0.27871696,605.77,604.06,0.30385855]
[1742145198291,0.27871696,605.77,604.07,0.30385855]
[1742145198493,0.27871696,605.76,604.05,0.30385855]
[1742145198795,0.27871696,605.75,604.06,0.30385855]
[1742145198991,0.27871696,605.77,604.05,0.30385855]
[1742145199193,0.27871696,605.76,604.06,0.30385855]
[1742145199396,0.27871696,605.75,604.05,0.30385855]
[1742145199597,0.27871696,605.74,604.06,0.30385855]
[1742145199799,0.27871696,605.73,604.07,0.30385855]
[1742145199995,0.27871696,605.75,604.05,0.30385855]
[1742145200193,0.27871696,605.74,604.06,0.30385855]
[1742145200395,0.27871696,605.75,604.05,0.30385855]
[1742145200595,0.27871696,605.74,604.05,0.30385855]
[1742145200898,0.27871696,605.73,604.05,0.30385855]
[1742145201094,3.44161816,605.75,604.04,0.7571039]
[1742145201300,0.2788466,605.74,604.05,0.30389495]
[1742145202397,0.33018011,605.73,604.05,0.30389495]